fUSD/lending_fUSD_20251102
["ID","MTS","AMOUNT","RATE_DAILY","PERIOD"]
[392891998,1762113040620,-150.0,0.00014999,2]
[392891999,1762113040629,-150.0,0.00014999,2]
[392892000,1762113040638,-151.0,0.00014999,2]
[392892001,1762113040648,-151.0,0.00014999,2]
[392892002,1762113040657,-151.0,0.00014999,2]
[392892003,1762113040667,-151.0,0.00014999,2]
[392892004,1762113040676,-838.842871,0.00014999,2]
[392892005,1762113040687,-27.41904503,0.00014999,2]
[392892006,1762113040720,-811.42382597,0.00014999,2]
[392892007,1762113040730,-838.842871,0.00014999,2]
[392892008,1762113040739,-838.842871,0.00014999,2]
[392892009,1762113040748,-160.124856,0.00014999,2]
[392892010,1762113040759,-151.0,0.00014999,2]
[392892011,1762113040769,-151.0,0.00014999,2]
[392892012,1762113040779,-151.0,0.00014999,2]
[392892013,1762113040788,-151.0,0.00014999,2]
[392892014,1762113040797,-151.0,0.00014999,2]
[392892015,1762113040806,-151.0,0.00014999,2]
[392892016,1762113040814,-549.0,0.00014999,2]
[392892017,1762113040823,-1004.0,0.00015,2]
[392892018,1762113040832,-5272.62158017,0.00015,2]
[392892019,1762113040845,-1894.82700342,0.00015,2]
[392892020,1762113040858,-2471.11974918,0.00015,2]
[392892031,1762113042944,-150.0,0.00014999,2]
[392892032,1762113042954,-150.0,0.00014999,2]
[392892033,1762113042963,-150951.02255324,0.00015,2]
[392892035,1762113043155,-996.59902491,0.00015,2]
[392892048,1762113045787,-643.46793792,0.00014898,2]
[392892054,1762113045844,-1971.3884605,0.00014898,2]
[392892056,1762113045853,-3173.38238699,0.00015,2]
[392892064,1762113046004,-5574.786,0.00015,2]
[392892065,1762113046057,-1764.95154424,0.00015,2]
[392892066,1762113046068,-33110.27240526,0.00015,2]
[392892067,1762113046115,-991.23407506,0.00015,2]
[392892068,1762113046170,-328.23749287,0.00015,2]
[392892070,1762113065317,5516.0,0.000148,3]
[392892071,1762113071959,300.0,0.000144,5]
[392892072,1762113074087,600.0,0.000145,5]
[392892073,1762113076193,900.0,0.000146,5]
[392892074,1762113078305,87.84313079,0.000147,5]
[392892075,1762113078331,1112.15686921,0.000147,5]
[392892076,1762113080409,1500.0,0.000148,5]
[392892077,1762113082495,300.0,0.000149,5]
[392892078,1762113101269,534.19645068,0.00014412,2]
[392892079,1762113101291,1535.80354932,0.00014412,2]
[392892080,1762113114478,500.0,0.00013356,2]
[392892081,1762113120215,497.37,0.00013989,2]
[392892082,1762113153332,-261.56145636,0.00014532,2]
[392892084,1762113163438,1000.0,0.00013699,2]
[392892085,1762113173387,155.56119969,0.00014467,2]
[392892094,1762113245887,221.66766337,0.00014524,2]
[392892095,1762113250990,5516.0,0.000149,5]
[392892096,1762113254726,150.0,0.00013832,2]
[392892097,1762113254937,150.0,0.00013832,120]
[392892102,1762113385978,1000.0,0.00013828,2]
[392892104,1762113440216,192.55,0.00014,2]
[392892105,1762113440575,500.0,0.00014,2]
[392892106,1762113447089,261.56145636,0.00012011,2]
[392892107,1762113461630,152.0,0.00014192,3]
[392892108,1762113470076,500.0,0.00013838,2]
[392892109,1762113482783,760.22,0.00013838,2]
[392892110,1762113522070,1912.45,0.00013832,2]
[392892113,1762113595694,166.66,0.00013699,2]
[392892114,1762113595901,166.66,0.00013864,2]
[392892115,1762113596091,166.66,0.0001403,2]
[392892116,1762113596288,166.66,0.00014196,2]
[392892117,1762113596489,166.66,0.00014362,2]
[392892118,1762113596688,166.66,0.00014528,2]
[392892121,1762113607771,5565.81854364,0.00013835,2]
[392892122,1762113607797,9623.01145636,0.00013835,2]
[392892132,1762113644420,264.8026421,0.00014532,2]
[392892133,1762113645392,-1808.43854364,0.00014532,2]
[392892135,1762113676247,500.0,0.0001399,2]
[392892136,1762113681631,500.0,0.0001419,2]
[392892137,1762113686999,515.15875602,0.0001439,2]
[392892139,1762113691836,343.05,0.00013836,2]
[392892140,1762113701009,-235.1973579,0.00014549,2]
[392892142,1762113731606,2004.601305,0.0001425,2]
[392892143,1762113735410,500.0,0.00012011,2]
[392892144,1762113735483,500.0,0.00012011,2]
[392892145,1762113735793,500.0,0.00012011,2]
[392892146,1762113735876,500.0,0.00012011,2]
[392892147,1762113735923,500.0,0.00012011,2]
[392892148,1762113736136,20.3228517,0.00012011,2]
[392892149,1762113736159,479.6771483,0.00012011,2]
[392892150,1762113736194,500.0,0.00012011,2]
[392892151,1762113736448,500.0,0.00012011,2]
[392892152,1762113736484,500.0,0.00012011,2]
[392892153,1762113736821,500.0,0.00012011,2]
[392892154,1762113736871,500.0,0.00012011,2]
[392892155,1762113737157,500.0,0.00012011,2]
[392892156,1762113737196,500.0,0.00012011,2]
[392892157,1762113737483,500.0,0.00012011,2]
[392892158,1762113737623,500.0,0.00012011,2]
[392892159,1762113737825,500.0,0.00011,2]
[392892160,1762113737955,500.0,0.00012011,2]
[392892161,1762113738191,500.0,0.00011,2]
[392892162,1762113738292,500.0,0.00012011,2]
[392892163,1762113738575,500.0,0.00011,2]
[392892164,1762113738781,500.0,0.00012011,2]
[392892165,1762113738904,500.0,0.00011,2]
[392892166,1762113739091,500.0,0.00011,2]
[392892167,1762113739228,500.0,0.00011,2]
[392892168,1762113739403,500.0,0.00011,2]
[392892169,1762113739609,500.0,0.00011,2]
[392892170,1762113739833,500.0,0.00011,2]
[392892171,1762113739937,700.0,0.00011,2]
[392892172,1762113740064,500.0,0.00012011,2]
[392892173,1762113740400,500.0,0.00012011,2]
[392892174,1762113740452,500.0,0.00012011,2]
[392892175,1762113740484,500.0,0.00012011,2]
[392892176,1762113740559,500.0,0.00011,2]
[392892177,1762113740722,800.0,0.00011,2]
[392892178,1762113740906,500.0,0.00011,2]
[392892179,1762113741250,500.0,0.00011,2]
[392892180,1762113741576,500.0,0.00011,2]
[392892182,1762113741974,500.0,0.00011,2]
[392892183,1762113742290,500.0,0.00011,2]
[392892184,1762113742629,517.01353548,0.00011,2]
[392892185,1762113743335,173.06111928,0.00012011,2]
[392892186,1762113744890,500.0,0.00012011,2]
[392892187,1762113744959,500.0,0.00012011,2]
[392892188,1762113745076,500.0,0.00012011,2]
[392892189,1762113745376,500.0,0.00011,2]
[392892190,1762113745707,800.0,0.00011,2]
[392892191,1762113746387,500.0,0.00012011,2]
[392892192,1762113746735,500.0,0.00012011,2]
[392892193,1762113747081,500.0,0.00012011,2]
[392892194,1762113747450,500.0,0.00012011,2]
[392892195,1762113747982,500.0,0.00012011,2]
[392892196,1762113748305,500.0,0.00011,2]
[392892197,1762113748639,500.0,0.00011,2]
[392892198,1762113748970,500.0,0.00011,2]
[392892199,1762113749318,500.0,0.00011,2]
[392892200,1762113749678,900.0,0.00011,2]
[392892203,1762113769099,789.11,6.921e-05,2]
[392892204,1762113769334,487.64179592,7.285e-05,2]
[392892205,1762113769356,301.46820408,7.285e-05,2]
[392892206,1762113769672,789.11,7.649e-05,2]
[392892207,1762113770013,789.11,8.013e-05,2]
[392892208,1762113770092,789.11,8.378e-05,2]
[392892209,1762113770275,789.11,8.742e-05,2]
[392892210,1762113770478,789.11,9.106e-05,2]
[392892211,1762113770700,789.11,9.47e-05,2]
[392892212,1762113770948,789.11,9.835e-05,2]
[392892213,1762113771149,789.11,0.00010199,2]
[392892214,1762113771426,789.11,0.00010563,2]
[392892215,1762113771690,789.11,0.00010927,2]
[392892216,1762113771925,789.11,0.00011292,2]
[392892217,1762113772165,789.11,0.00011656,2]
[392892218,1762113772353,789.11,0.0001202,2]
[392892219,1762113772641,789.11,0.00012384,2]
[392892220,1762113772861,789.11,0.00012749,2]
[392892221,1762113773097,789.11,0.00013113,2]
[392892222,1762113773297,789.11,0.00013477,2]
[392892223,1762113773553,789.11,0.00013841,2]
[392892225,1762113802335,150.0,0.00013837,2]
[392892238,1762113832054,344.55179592,0.00013835,2]
[392892239,1762113832076,56.98820408,0.00013835,2]
[392892240,1762113847263,507.1,0.00013838,2]
[392892243,1762113877716,690.7,0.00013834,2]
[392892245,1762113906894,150.0,0.00013488,2]
[392892246,1762113907020,150.00000001,0.00013488,2]
[392892247,1762113907061,212.36813312,0.00013488,2]
[392892248,1762113913899,150.0,0.00013488,2]
[392892249,1762113913937,150.0,0.00013987,2]
[392892250,1762113913978,150.0,0.00014487,2]
[392892251,1762113914165,150.0,0.00013488,2]
[392892252,1762113914235,283.18139763,0.00013488,2]
[392892253,1762113920834,150.0,0.00013488,2]
[392892254,1762113921008,150.0,0.00013488,2]
[392892255,1762113926350,150.0,0.00013488,2]
[392892256,1762113927805,254.73793039,0.00013488,2]
[392892257,1762113938934,1752.16,0.0001384,2]
[392892267,1762114015611,231.52,0.0001382,2]
[392892268,1762114018126,512.79,0.00013818,2]
[392892269,1762114034650,500.0,0.00012011,2]
[392892271,1762114034964,500.0,0.00012011,2]
[392892272,1762114035039,500.0,0.00012011,2]
[392892273,1762114035310,500.0,0.00012011,2]
[392892274,1762114035392,500.0,0.00012011,2]
[392892275,1762114035645,600.0,0.00011,2]
[392892276,1762114035707,500.0,0.00011,2]
[392892277,1762114036038,500.0,0.00011,2]
[392892278,1762114036374,526.95888072,0.00011,2]
[392892279,1762114037639,909.02202371,0.00012011,2]
[392892280,1762114038573,500.0,0.00012011,2]
[392892281,1762114039448,866.43854364,0.00011,2]
[392892282,1762114040267,810.0,0.00012011,2]
[392892283,1762114040775,500.0,0.00012011,2]
[392892284,1762114041315,500.0,0.00012011,2]
[392892285,1762114041632,436.0348867,0.00011,2]
[392892286,1762114041654,530.6251133,0.00011,2]
[392892287,1762114041695,500.0,0.00012011,2]
[392892291,1762114100616,4440.89,0.00013799,2]
[392892293,1762114150728,250.0,0.00013787,2]
[392892298,1762114174298,172.38685122,0.00014437,2]
[392892299,1762114206514,200.0,0.00014487,2]
[392892306,1762114231959,-785.91420296,0.00014526,2]
[392892307,1762114231969,-2534.14768445,0.00014532,2]
[392892308,1762114231979,-250.0,0.00014537,2]
[392892309,1762114231989,-237.66630996,0.00014549,2]
[392892310,1762114231999,-151.0,0.00014549,2]
[392892311,1762114232010,-578.20924308,0.00014558,2]
[392892312,1762114232031,-239.84119403,0.00014558,2]
[392892313,1762114232042,-933.31071964,0.00014566,2]
[392892314,1762114232056,-1136.68928036,0.00014566,2]
[392892315,1762114232065,-1200.0,0.00014583,2]
[392892316,1762114232075,-893.21759391,0.00014584,2]
[392892317,1762114232085,-231.52,0.00014588,2]
[392892318,1762114232095,-300.0,0.00014621,2]
[392892319,1762114232104,-300.0,0.00014621,2]
[392892320,1762114232113,-2070.0,0.00014622,2]
[392892321,1762114232123,-1200.0,0.00014624,2]
[392892322,1762114232133,-1375.40983866,0.00014626,2]
[392892323,1762114232146,-694.59016134,0.00014626,2]
[392892324,1762114232155,-221.66766337,0.00014671,2]
[392892325,1762114232165,-682.96967896,0.00014677,2]
[392892326,1762114232177,-885.27790424,0.00014677,2]
[392892327,1762114232189,-501.7524168,0.00014677,2]
[392892328,1762114232198,-410.28585585,0.00014697,2]
[392892329,1762114232208,-150.0,0.00014754,2]
[392892330,1762114232217,-293.35690279,0.00014755,2]
[392892331,1762114232229,-561.45,0.00014755,2]
[392892334,1762114232240,-570.19309721,0.00014755,2]
[392892335,1762114232249,-404.84,0.00014757,2]
[392892337,1762114232258,-1000.0,0.00014758,2]
[392892339,1762114232268,-1425.0,0.00014773,2]
[392892341,1762114232278,-1425.0,0.00014773,2]
[392892343,1762114232287,-150.0,0.00014775,2]
[392892345,1762114232296,-1178.81,0.00014776,2]
[392892347,1762114232306,-151.0,0.00014776,2]
[392892349,1762114232316,-151.0,0.00014776,2]
[392892351,1762114232330,-151.0,0.00014776,2]
[392892353,1762114232340,-151.0,0.00014776,2]
[392892355,1762114232349,-151.0,0.00014776,2]
[392892357,1762114232359,-200.0,0.00014776,2]
[392892359,1762114232368,-151.0,0.00014776,2]
[392892361,1762114232381,-500.0,0.00014776,2]
[392892363,1762114232390,-151.0,0.00014776,2]
[392892365,1762114232400,-500.0,0.00014776,2]
[392892367,1762114232410,-151.0,0.00014776,2]
[392892369,1762114232420,-500.0,0.00014776,2]
[392892372,1762114232430,-151.0,0.00014776,2]
[392892373,1762114232440,-281.55946028,0.00014776,2]
[392892376,1762114232452,-218.44053972,0.00014776,2]
[392892378,1762114232461,-250.0,0.00014776,2]
[392892380,1762114232470,-151.0,0.00014776,2]
[392892382,1762114232479,-500.0,0.00014776,2]
[392892384,1762114232489,-250.0,0.00014776,2]
[392892386,1762114232498,-151.0,0.00014776,2]
[392892388,1762114232508,-500.0,0.00014776,2]
[392892390,1762114232517,-250.0,0.00014776,2]
[392892392,1762114232526,-207.4,0.00014776,2]
[392892394,1762114232535,-151.0,0.00014776,2]
[392892395,1762114232545,-500.0,0.00014776,2]
[392892397,1762114232554,-250.0,0.00014776,2]
[392892399,1762114232566,-151.0,0.00014776,2]
[392892400,1762114232576,-500.0,0.00014776,2]
[392892401,1762114232585,-250.0,0.00014776,2]
[392892402,1762114232595,-188.4028673,0.00014776,2]
[392892403,1762114232605,-500.0,0.00014776,2]
[392892404,1762114232617,-250.0,0.00014776,2]
[392892405,1762114232627,-209.40437684,0.00014776,2]
[392892406,1762114232639,-238.04135204,0.00014776,2]
[392892407,1762114232662,-283.34944173,0.00014776,2]
[392892408,1762114232671,-250.0,0.00014776,2]
[392892409,1762114232681,-250.0,0.00014776,2]
[392892410,1762114232691,-250.0,0.00014776,2]
[392892411,1762114232701,-250.0,0.00014776,2]
[392892412,1762114232710,-250.0,0.00014776,2]
[392892413,1762114232721,-500.0,0.00014776,2]
[392892414,1762114232731,-496.47127164,0.00014776,2]
[392892415,1762114232741,-620.0,0.00014776,2]
[392892416,1762114232751,-151.0,0.00014776,2]
[392892417,1762114232766,-151.0,0.00014776,2]
[392892418,1762114232775,-151.0,0.00014776,2]
[392892419,1762114232785,-151.0,0.00014776,2]
[392892420,1762114232795,-151.0,0.00014776,2]
[392892421,1762114232805,-151.0,0.00014776,2]
[392892422,1762114232815,-151.0,0.00014776,2]
[392892423,1762114232825,-151.0,0.00014776,2]
[392892424,1762114232836,-151.0,0.00014776,2]
[392892425,1762114232845,-151.0,0.00014776,2]
[392892426,1762114232857,-151.0,0.00014776,2]
[392892427,1762114232868,-151.0,0.00014776,2]
[392892428,1762114232878,-151.0,0.00014776,2]
[392892429,1762114232887,-151.0,0.00014776,2]
[392892430,1762114232896,-151.0,0.00014776,2]
[392892431,1762114232905,-151.0,0.00014776,2]
[392892432,1762114232915,-151.0,0.00014776,2]
[392892433,1762114232924,-151.0,0.00014776,2]
[392892434,1762114232934,-151.0,0.00014776,2]
[392892435,1762114232947,-151.0,0.00014776,2]
[392892436,1762114232961,-151.0,0.00014776,2]
[392892437,1762114232971,-151.0,0.00014776,2]
[392892438,1762114232980,-151.0,0.00014776,2]
[392892439,1762114232992,-151.0,0.00014776,2]
[392892440,1762114233002,-151.0,0.00014776,2]
[392892441,1762114233011,-151.0,0.00014776,2]
[392892442,1762114233023,-151.0,0.00014776,2]
[392892443,1762114233033,-151.0,0.00014776,2]
[392892444,1762114233042,-151.0,0.00014776,2]
[392892445,1762114233052,-151.0,0.00014776,2]
[392892446,1762114233062,-151.0,0.00014776,2]
[392892447,1762114233072,-500.0,0.00014776,2]
[392892448,1762114233081,-448.97535654,0.00014776,2]
[392892449,1762114233091,-329.46,0.00014778,2]
[392892450,1762114233100,-1000.0,0.00014778,2]
[392892451,1762114233109,-1425.0,0.0001479,2]
[392892452,1762114233119,-564.85,0.00014791,2]
[392892453,1762114233129,-2410.16149866,0.00014796,2]
[392892454,1762114233138,-1138.791,0.00014797,2]
[392892455,1762114233151,-2073.0649,0.00014797,2]
[392892456,1762114233161,-1000.0,0.00014797,2]
[392892457,1762114233171,-3941.9400085,0.00014797,2]
[392892458,1762114233181,-151.0,0.00014797,2]
[392892459,1762114233190,-500.0,0.00014799,2]
[392892460,1762114233200,-500.0,0.00014799,2]
[392892461,1762114233209,-500.0,0.00014799,2]
[392892462,1762114233219,-500.0,0.00014799,2]
[392892463,1762114233228,-500.0,0.00014799,2]
[392892464,1762114233238,-500.0,0.00014799,2]
[392892465,1762114233247,-397.09605547,0.00014799,2]
[392892466,1762114233257,-500.0,0.00014799,2]
[392892467,1762114233268,-410.95546658,0.00014799,2]
[392892468,1762114233277,-500.0,0.00014799,2]
[392892469,1762114233287,-500.0,0.00014799,2]
[392892470,1762114233297,-500.0,0.00014799,2]
[392892471,1762114233306,-500.0,0.00014799,2]
[392892472,1762114233316,-500.0,0.00014799,2]
[392892473,1762114233326,-500.0,0.00014799,2]
[392892474,1762114233338,-500.0,0.00014799,2]
[392892475,1762114233348,-500.0,0.00014799,2]
[392892476,1762114233358,-500.0,0.00014799,2]
[392892477,1762114233367,-500.0,0.00014799,2]
[392892478,1762114233377,-500.0,0.00014799,2]
[392892479,1762114233387,-500.0,0.00014799,2]
[392892480,1762114233396,-500.0,0.00014799,2]
[392892481,1762114233406,-500.0,0.00014799,2]
[392892482,1762114233416,-500.0,0.00014799,2]
[392892483,1762114233426,-500.0,0.00014799,2]
[392892484,1762114233435,-500.0,0.00014799,2]
[392892485,1762114233446,-500.0,0.00014799,2]
[392892486,1762114233456,-500.0,0.00014799,2]
[392892487,1762114233466,-500.0,0.00014799,2]
[392892488,1762114233475,-150.0,0.00014799,2]
[392892489,1762114233485,-500.0,0.00014799,2]
[392892490,1762114233495,-500.0,0.00014799,2]
[392892491,1762114233504,-500.0,0.00014799,2]
[392892492,1762114233514,-500.0,0.00014799,2]
[392892493,1762114233524,-500.0,0.00014799,2]
[392892494,1762114233533,-15000.0,0.000148,2]
[392892495,1762114233543,-45000.0,0.000148,2]
[392892496,1762114233553,-15000.0,0.000148,2]
[392892497,1762114233564,-2410.16149862,0.00014808,2]
[392892498,1762114233575,-3941.9400085,0.00014808,2]
[392892499,1762114233584,-1000.0,0.00014814,2]
[392892500,1762114233595,-214.83239865,0.00014816,2]
[392892501,1762114233606,-150.0,0.00014818,2]
[392892502,1762114233615,-2410.16149862,0.00014819,2]
[392892503,1762114233625,-3941.9400085,0.0001482,2]
[392892504,1762114233635,-1000.0,0.00014821,2]
[392892505,1762114233646,-2410.16149862,0.00014831,2]
[392892506,1762114233657,-3941.9400085,0.00014831,2]
[392892507,1762114233668,-1000.0,0.00014836,2]
[392892508,1762114233678,-2410.16149862,0.00014842,2]
[392892509,1762114233687,-3941.9400085,0.00014843,2]
[392892510,1762114233697,-422.38624717,0.00014844,2]
[392892511,1762114233706,-151.0,0.00014847,2]
[392892512,1762114233722,-500.0,0.00014849,2]
[392892513,1762114233735,-407.82609127,0.0001485,2]
[392892514,1762114233745,-743.85537,0.0001485,2]
[392892515,1762114233755,-154.62489271,0.00014851,2]
[392892516,1762114233764,-1000.0,0.00014852,2]
[392892517,1762114233774,-2410.16149862,0.00014854,2]
[392892518,1762114233784,-3941.9400085,0.00014854,2]
[392892519,1762114233793,-150.0,0.00014855,2]
[392892520,1762114233803,-1000.0,0.00014855,2]
[392892521,1762114233812,-150.0,0.00014858,2]
[392892522,1762114233822,-2410.16149862,0.00014865,2]
[392892523,1762114233831,-3941.9400085,0.00014866,2]
[392892524,1762114233841,-820.0,0.00014869,2]
[392892525,1762114233850,-1314.0,0.00014869,2]
[392892526,1762114233860,-1594.0,0.00014869,2]
[392892527,1762114233869,-500.0,0.00014873,2]
[392892528,1762114233879,-500.0,0.00014873,2]
[392892529,1762114233889,-500.0,0.00014873,2]
[392892530,1762114233899,-1000.0,0.00014876,2]
[392892531,1762114233909,-2410.16149862,0.00014877,2]
[392892532,1762114233919,-3941.9400085,0.00014877,2]
[392892533,1762114233929,-200.0,0.0001488,2]
[392892534,1762114233939,-1249.37,0.00014887,2]
[392892535,1762114233951,-1249.37,0.00014887,2]
[392892536,1762114233961,-1425.0,0.00014888,2]
[392892537,1762114233971,-2410.16149862,0.00014888,2]
[392892538,1762114233980,-3941.9400085,0.00014889,2]
[392892539,1762114233990,-1249.37,0.0001489,2]
[392892540,1762114234001,-151.0,0.00014894,2]
[392892541,1762114234010,-151.0,0.00014894,2]
[392892542,1762114234022,-500.0,0.00014896,2]
[392892543,1762114234032,-500.0,0.00014896,2]
[392892544,1762114234042,-500.0,0.00014896,2]
[392892545,1762114234051,-506.70220008,0.00014896,2]
[392892546,1762114234061,-500.0,0.00014896,2]
[392892547,1762114234071,-500.0,0.00014896,2]
[392892548,1762114234082,-500.0,0.00014896,2]
[392892549,1762114234092,-500.0,0.00014896,2]
[392892550,1762114234102,-545.94875436,0.00014896,2]
[392892551,1762114234115,-410.31432876,0.00014896,2]
[392892552,1762114234125,-1051.41,0.00014896,2]
[392892553,1762114234135,-500.0,0.00014896,2]
[392892554,1762114234146,-500.0,0.00014896,2]
[392892555,1762114234155,-500.0,0.00014896,2]
[392892556,1762114234165,-500.0,0.00014896,2]
[392892557,1762114234175,-500.0,0.00014896,2]
[392892558,1762114234185,-4090.0356,0.00014897,2]
[392892559,1762114234195,-117506.35398125,0.00014897,2]
[392892560,1762114234219,-1743.76049974,0.00014897,2]
[392892561,1762114234231,-63268.22633996,0.00014897,2]
[392892562,1762114234243,-1403.84725605,0.00014897,2]
[392892563,1762114234255,-18297.542423,0.00014897,2]
[392892564,1762114234265,-1000.0,0.00014897,2]
[392892565,1762114234274,-4203.219,0.00014899,2]
[392892566,1762114234284,-209.171,0.00014899,2]
[392892567,1762114234294,-200.0,0.000149,2]
[392892568,1762114234303,-5000.0,0.000149,2]
[392892569,1762114234313,-2410.16149862,0.000149,2]
[392892570,1762114234323,-3941.9400085,0.000149,2]
[392892571,1762114234333,-164.86358556,0.000149,2]
[392892572,1762114234342,-574.16680114,0.000149,2]
[392892573,1762114234352,-150.0,0.00014903,2]
[392892574,1762114234362,-150.0,0.00014904,2]
[392892575,1762114234372,-150.0,0.00014904,2]
[392892576,1762114234382,-1000.0,0.00014905,2]
[392892577,1762114234391,-1425.0,0.00014925,2]
[392892578,1762114234401,-581.38106359,0.00014925,2]
[392892579,1762114234410,-295.17526679,0.00014926,2]
[392892580,1762114234421,-150.0,0.00014933,2]
[392892581,1762114234431,-1000.0,0.00014936,2]
[392892582,1762114234440,-819.0,0.00014939,2]
[392892583,1762114234450,-600.936,0.00014939,2]
[392892584,1762114234459,-3619.113,0.00014941,2]
[392892585,1762114234469,-1813.617,0.00014941,2]
[392892586,1762114234478,-6469.0,0.00014941,2]
[392892587,1762114234487,-1425.0,0.0001495,2]
[392892588,1762114234500,-450.0,0.00014953,2]
[392892589,1762114234510,-1425.0,0.00014955,2]
[392892590,1762114234519,-1425.0,0.0001496,2]
[392892591,1762114234529,-1425.0,0.00014964,2]
[392892592,1762114234538,-1000.0,0.0001497,2]
[392892593,1762114234548,-1000.0,0.0001497,2]
[392892594,1762114234558,-1000.0,0.0001497,2]
[392892595,1762114234567,-1000.0,0.0001497,2]
[392892596,1762114234577,-1000.0,0.0001497,2]
[392892597,1762114234587,-1467.06179271,0.0001497,2]
[392892598,1762114234596,-1000.0,0.0001497,2]
[392892599,1762114234605,-564.57356272,0.00014973,2]
[392892600,1762114234615,-504.12619354,0.00014973,2]
[392892601,1762114234624,-500.0,0.00014973,2]
[392892602,1762114234634,-500.0,0.00014973,2]
[392892603,1762114234643,-604.79958496,0.00014973,2]
[392892604,1762114234653,-500.0,0.00014973,2]
[392892605,1762114234662,-500.0,0.00014973,2]
[392892606,1762114234671,-500.0,0.00014973,2]
[392892607,1762114234681,-500.0,0.00014973,2]
[392892608,1762114234690,-425.17065822,0.00014973,2]
[392892609,1762114234699,-500.0,0.00014973,2]
[392892610,1762114234709,-473.21088675,0.00014973,2]
[392892611,1762114234718,-5466.0,0.00014975,2]
[392892612,1762114234728,-743.85538,0.0001498,2]
[392892613,1762114234737,-3420.0,0.00014986,2]
[392892614,1762114234747,-150.27602974,0.00014986,2]
[392892615,1762114234756,-150.00000001,0.00014986,2]
[392892616,1762114234766,-2232.0,0.00014986,2]
[392892617,1762114234776,-150.0,0.00014986,2]
[392892618,1762114234785,-1249.37,0.00014988,2]
[392892619,1762114234795,-1249.37,0.00014989,2]
[392892620,1762114234804,-172.30784605,0.0001499,2]
[392892621,1762114234813,-172.30784605,0.0001499,2]
[392892622,1762114234823,-151.0,0.00014995,2]
[392892623,1762114234833,-151.0,0.00014996,2]
[392892624,1762114234843,-500.0,0.00014996,2]
[392892625,1762114234852,-500.0,0.00014996,2]
[392892626,1762114234866,-500.0,0.00014996,2]
[392892627,1762114234875,-500.0,0.00014996,2]
[392892628,1762114234884,-537.08558409,0.00014996,2]
[392892629,1762114234894,-500.0,0.00014996,2]
[392892630,1762114234903,-1000.0,0.00014996,2]
[392892631,1762114234912,-500.0,0.00014996,2]
[392892632,1762114234922,-509.97586662,0.00014998,2]
[392892633,1762114234931,-20929.4377639,0.00014998,2]
[392892634,1762114234941,-500.0,0.00014998,2]
[392892635,1762114234954,-500.0,0.00014998,2]
[392892636,1762114234963,-500.0,0.00014998,2]
[392892637,1762114234973,-500.0,0.00014998,2]
[392892638,1762114234983,-500.0,0.00014998,2]
[392892639,1762114234995,-500.0,0.00014998,2]
[392892640,1762114235005,-584.73525235,0.00014998,2]
[392892641,1762114235016,-500.0,0.00014998,2]